bitfinex/quotes_ETHUSD_20250705
["timestamp","ask_amount","ask_price","bid_price","bid_amount"]
[1751757134028,1e-08,2523.6,2523.5,27.89424262]
[1751757135936,1e-08,2523.6,2523.5,18.01024262]
[1751757136120,1e-08,2523.6,2523.5,27.89324262]
[1751757144056,1e-08,2523.6,2523.5,33.37805156]
[1751757148250,1e-08,2523.6,2523.5,29.52915908]
[1751757150957,1e-08,2523.6,2523.5,24.04435014]
[1751757155472,1e-08,2523.6,2523.5,14.16135014]
[1751757155638,1e-08,2523.6,2523.5,24.04335014]
[1751757158691,1e-08,2523.6,2523.5,29.52815908]
[1751757158868,1e-08,2523.6,2523.5,32.95619509]
[1751757174610,1e-08,2523.6,2523.5,27.47038615]
[1751757174814,1e-08,2523.6,2523.5,24.04235014]
[1751757175778,1e-08,2523.6,2523.5,14.16135014]
[1751757176082,1e-08,2523.6,2523.5,24.04135014]
[1751757186301,1e-08,2523.6,2523.5,14.16135014]
[1751757186500,1e-08,2523.6,2523.5,24.04135014]
[1751757200321,1e-08,2523.6,2523.5,27.46776615]
[1751757206664,1e-08,2523.6,2523.5,28.80626615]
[1751757207340,1e-08,2523.6,2523.5,34.29107509]
[1751757211944,1e-08,2523.6,2523.5,39.04107509]
[1751757223992,1e-08,2523.6,2523.5,31.08707509]
[1751757224165,1e-08,2523.6,2523.5,39.03807509]
[1751757229723,1e-08,2523.6,2523.5,34.28807509]
[1751757232103,1e-08,2523.6,2523.5,39.03807509]
[1751757232311,1e-08,2524.2,2524.1,5.26950816]
[1751757232484,1e-08,2524.2,2524.1,25.38172624]
[1751757232805,1e-08,2524.2,2524.1,25.34210816]
[1751757233778,1e-08,2524.2,2524.1,32.87729604]
[1751757233978,1e-08,2524.2,2524.1,36.721627]
[1751757235307,0.01,2524.7,2524.6,5.31582352]
[1751757235502,0.01,2524.7,2524.6,21.95163375]
[1751757235702,0.01,2524.7,2524.6,24.39802352]
[1751757235909,0.01,2524.7,2524.6,27.82443953]
[1751757236203,0.01,2524.7,2524.6,19.86143953]
[1751757236410,0.4276,2524.7,2524.4,1.924]
[1751757237111,0.4176,2524.6,2524.4,1.924]
[1751757237313,4.37878043,2524.5,2524.4,1.924]
[1751757237520,3.96104455,2524.6,2523.9,3.96205694]
[1751757237521,3.96134311,2524.4,2523.9,3.96205694]
[1751757237723,0.4176,2524.3,2524.0,1.924]
[1751757237912,0.4176,2524.2,2523.8,3.96220299]
[1751757238227,0.4176,2524.2,2523.9,1.924]
[1751757241333,0.43791206,2524.1,2523.9,1.924]
[1751757242116,0.4176,2524.2,2524.0,3.96181374]
[1751757242628,0.4176,2524.2,2523.9,5.88604089]
[1751757242833,0.4176,2524.2,2524.0,3.96187247]
[1751757244348,0.4176,2524.2,2523.9,5.88604069]
[1751757244501,0.4176,2524.2,2523.9,5.92566191]
[1751757244936,0.4176,2524.2,2523.9,5.88604069]
[1751757245460,0.4176,2524.2,2524.0,0.1976]
[1751757245910,0.4176,2524.2,2524.0,4.15945865]
[1751757246257,0.4176,2524.2,2524.0,0.1976]
[1751757246696,0.4176,2524.2,2524.0,4.15948541]
[1751757246900,0.4176,2524.2,2524.0,0.1976]
[1751757247101,0.4176,2524.2,2524.0,4.15954731]
[1751757247936,0.4176,2524.2,2524.0,0.1976]
[1751757248524,0.87525554,2524.2,2524.0,0.1976]
[1751757249531,0.87525554,2524.2,2523.9,1.924]
[1751757253054,4.83693016,2524.2,2523.9,1.924]
[1751757254154,0.87525554,2524.2,2523.9,1.924]
[1751757254357,4.83700853,2524.2,2523.9,1.924]
[1751757254555,0.50346085,2524.1,2523.9,1.924]
[1751757254856,0.87525554,2524.2,2523.9,5.88608037]
[1751757256425,0.87525554,2524.2,2524.0,3.96195303]
[1751757256743,0.87525554,2524.2,2523.9,5.88604754]
[1751757257754,0.87525554,2524.2,2523.9,216.12604754]
[1751757259058,0.87525554,2524.2,2523.9,216.12704754]
[1751757261362,0.87525554,2524.2,2524.0,3.96196071]
[1751757261565,0.4176,2524.2,2524.0,3.96196071]
[1751757262543,0.4176,2524.2,2523.9,216.12704551]
[1751757264451,7.95278788,2524.2,2523.9,210.241]
[1751757264657,3.96196513,2524.0,2523.9,210.241]
[1751757264845,5.54960848,2524.0,2523.9,212.177]
[1751757265445,1.58764335,2524.0,2523.9,212.177]
[1751757265848,1.58764335,2524.0,2523.9,210.241]
[1751757266063,1.58764335,2524.0,2523.9,212.177]
[1751757272479,1.58764335,2524.0,2523.9,210.241]
[1751757272651,1.58764335,2524.0,2523.9,212.177]
[1751757276658,1.58764335,2524.0,2523.9,210.241]
[1751757276858,1.58764335,2524.0,2523.9,212.177]
[1751757279711,1.58764335,2524.0,2523.9,210.241]
[1751757280017,4.37941267,2524.1,2523.9,212.177]
[1751757281205,0.4196,2524.6,2524.3,3.96149427]
[1751757281411,0.1996,2524.6,2524.4,3.96123769]
[1751757281599,0.1996,2524.6,2524.5,1.936]
[1751757282315,0.1996,2524.6,2524.5,5.89718043]
[1751757283682,0.1996,2524.6,2524.5,6.65158043]
[1751757287210,0.1996,2524.6,2524.5,1.936]
[1751757294921,0.1996,2524.6,2524.2,4.15922433]
[1751757295118,0.6172,2524.6,2524.3,1.932]
[1751757295740,4.57824257,2524.6,2524.2,4.15922433]
[1751757295944,4.57824257,2524.6,2524.3,1.932]
[1751757296147,6.18666056,2524.6,2524.3,1.932]
[1751757296427,6.18666056,2524.6,2524.2,4.15924777]
[1751757296729,6.18666056,2524.6,2524.4,1.932]
[1751757296903,2.22561799,2524.6,2524.5,1.932]
[1751757299530,0.6172,2524.6,2524.5,1.932]
[1751757300229,0.1996,2524.6,2524.5,1.932]
[1751757301918,0.1996,2524.6,2524.5,1.933]
[1751757305434,4.16062352,2524.6,2524.5,1.933]
[1751757307739,4.16062352,2524.6,2524.5,0.001]
[1751757307940,6.18664155,2524.6,2524.5,0.001]
[1751757318473,6.03664155,2524.6,2524.5,0.001]
[1751757324583,6.03864155,2524.6,2524.5,0.001]
[1751757327164,2.07761803,2524.6,2524.5,0.001]
[1751757327483,6.03864155,2524.6,2524.5,0.001]
[1751757329201,2.07761803,2524.6,2524.5,0.001]
[1751757329403,1.66001803,2524.6,2524.5,0.001]
[1751757330378,5.62104155,2524.6,2524.5,0.001]
[1751757330570,1.66001803,2524.6,2524.5,0.001]
[1751757330771,5.62104155,2524.6,2524.5,0.001]
[1751757339410,13.15622943,2524.6,2524.5,0.001]
[1751757354044,11.10532452,2524.6,2524.5,0.001]
[1751757357448,11.31192542,2524.6,2524.5,0.001]
[1751757357648,11.72952542,2524.6,2524.5,0.001]
[1751757373654,19.68652542,2524.6,2524.5,0.001]
[1751757373854,19.26892542,2524.6,2524.5,0.001]
[1751757383379,0.2582009,2524.6,2524.5,0.001]
[1751757383548,8.2152009,2524.6,2524.5,0.7958]
[1751757388602,0.2582009,2524.6,2524.5,0.7958]
[1751757388802,8.2152009,2524.6,2524.5,0.7958]
[1751757389396,8.0086,2524.6,2524.5,0.7958]
[1751757390769,0.0516,2524.6,2524.5,0.7958]
[1751757394004,0.0516,2524.6,2524.5,4.75698043]
[1751757394298,0.0516,2524.6,2524.5,5.23269145]
[1751757397302,0.0516,2524.6,2524.5,211.51151102]
[1751757406141,4.01262352,2524.6,2524.5,210.241]
[1751757406937,14.63683343,2524.6,2524.5,191.42786565]
[1751757407227,14.63683343,2524.6,2524.5,187.67619729]
[1751757407404,14.63683343,2524.6,2524.5,186.58595307]
[1751757407595,18.39006065,2524.6,2524.5,113.5101496]
[1751757407798,18.94006065,2524.6,2524.5,1e-08]
[1751757408029,4.37956513,2524.0,2523.6,1.926]
[1751757408253,13.85888297,2524.0,2523.6,1.926]
[1751757409934,8.3746,2524.0,2523.6,1.926]
[1751757410239,12.85926838,2524.0,2523.6,1.926]
[1751757410409,8.89730325,2524.0,2523.6,1.926]
[1751757420943,7.957,2524.0,2523.8,0.8027]
[1751757421318,7.957,2524.0,2523.6,2.7287]
[1751757424749,7.957,2524.0,2523.6,6.69129087]
[1751757424947,7.957,2524.0,2523.6,2.7287]
[1751757427953,7.957,2524.0,2523.6,6.69128857]
[1751757428335,7.957,2524.0,2523.6,2.7287]
[1751757430725,7.957,2524.0,2523.6,6.69122727]
[1751757431727,7.957,2524.0,2523.6,2.7287]
[1751757432853,19.46401563,2524.0,2523.5,0.001]
[1751757433151,19.6706802,2524.0,2523.5,1.928]
[1751757435339,19.6706802,2524.0,2523.5,0.001]
[1751757435537,19.6706802,2524.0,2523.5,1.928]
[1751757437143,19.6706802,2524.0,2523.5,0.001]
[1751757437345,19.6706802,2524.0,2523.5,1.928]
[1751757437549,19.6706802,2524.0,2523.5,0.001]
[1751757437942,19.6706802,2524.0,2523.5,1.928]
[1751757438555,19.6706802,2524.0,2523.5,0.001]
[1751757438847,19.6706802,2524.0,2523.5,1.928]
[1751757441772,30.1608802,2524.0,2523.5,0.001]
[1751757441998,30.7108802,2524.0,2523.5,0.001]
[1751757442275,34.19799448,2524.0,2523.5,0.001]
[1751757442449,34.19799448,2524.0,2523.9,0.00018598]
[1751757443049,4.45279312,2523.6,2523.5,0.001]
[1751757443249,12.41979312,2523.6,2523.5,0.001]
[1751757443679,22.41979312,2523.6,2523.5,0.001]
[1751757443852,23.20860931,2523.6,2523.5,0.001]
[1751757444753,23.75860931,2523.6,2523.5,0.001]
[1751757451463,31.56860931,2523.6,2523.5,0.001]
[1751757453266,31.77534928,2523.6,2523.5,0.001]
[1751757460198,4.5132213,2523.2,2523.1,0.0434362]
[1751757460405,30.5164718,2523.2,2523.1,0.0434362]
[1751757463274,38.3264718,2523.2,2523.1,0.0434362]
[1751757463597,30.2912213,2523.2,2523.1,0.0434362]
[1751757473593,30.49797403,2523.2,2523.1,0.0434362]
[1751757473790,31.28679022,2523.2,2523.1,0.0434362]
[1751757474280,30.73479022,2523.2,2523.1,0.0434362]
[1751757480917,31.28479022,2523.2,2523.1,0.0434362]
[1751757481087,23.96509022,2523.2,2523.1,0.0434362]
[1751757481787,23.96509022,2523.2,2523.1,0.00781554]
[1751757487820,23.96509022,2523.2,2523.1,0.00138813]
[1751757488406,23.75833749,2523.2,2523.1,0.00138813]
[1751757490423,23.75833749,2523.2,2523.0,0.001]
[1751757490424,14.71097838,2523.1,2523.0,0.001]
[1751757490598,25.02817196,2523.1,2523.0,0.001]
[1751757491331,13.96400681,2522.7,2522.6,0.0434362]
[1751757491527,29.47305731,2522.7,2522.6,0.0434362]
[1751757492025,30.02305731,2522.7,2522.6,0.0434362]
[1751757492230,30.73802851,2522.7,2522.6,0.0434362]
[1751757493302,30.9448263,2522.7,2522.6,0.0434362]
[1751757494231,30.3948263,2522.7,2522.6,0.0434362]
[1751757496114,22.4308263,2522.7,2522.6,0.0434362]
[1751757496430,30.3978263,2522.7,2522.6,0.0434362]
[1751757506717,30.9478263,2522.7,2522.6,0.0434362]
[1751757507945,30.9478263,2522.7,2522.5,0.001]
[1751757507946,5.20086395,2522.6,2522.5,0.001]
[1751757508119,7.91868014,2522.6,2522.5,1e-08]
[1751757509757,17.91868014,2522.6,2522.5,1e-08]
[1751757509919,25.72868014,2522.6,2522.5,1e-08]
[1751757511636,5.00389264,2522.2,2522.1,0.0434362]
[1751757511848,30.51594314,2522.2,2522.1,0.0434362]
[1751757512448,30.51594314,2522.2,2522.0,0.001]
[1751757512449,14.51557877,2521.7,2521.5,0.001]
[1751757512651,30.03162927,2521.7,2521.5,0.001]
[1751757513518,30.23852828,2521.7,2521.5,0.001]
[1751757513714,30.95349948,2521.7,2521.5,0.001]
[1751757516559,38.76349948,2521.7,2521.5,0.001]
[1751757517131,30.24249948,2521.7,2521.5,0.001]
[1751757517339,38.21849948,2521.7,2521.5,0.7734]
[1751757519354,25.99589901,2521.7,2521.5,0.7734]
[1751757519557,25.99489901,2521.7,2521.5,0.7734]
[1751757520760,18.18489901,2521.7,2521.5,0.7734]
[1751757522534,22.15047778,2521.7,2521.5,0.7734]
[1751757522746,18.18489901,2521.7,2521.5,0.7734]
[1751757523955,22.15047778,2521.7,2521.5,0.7734]
[1751757524261,23.65426517,2521.7,2521.5,0.7734]
[1751757524459,15.67626517,2521.7,2521.5,0.7734]
[1751757524633,23.65426517,2521.7,2521.5,0.7734]
[1751757529557,19.6886864,2521.7,2521.5,0.7734]
[1751757532069,23.65426517,2521.7,2521.5,0.7734]
[1751757536071,11.7106864,2521.7,2521.5,0.7734]
[1751757536377,18.18089901,2521.7,2521.5,0.7734]
[1751757536684,22.14647778,2521.7,2521.5,0.7734]
[1751757538453,22.14547778,2521.7,2521.5,0.7734]
[1751757539294,18.17989901,2521.7,2521.5,0.7734]
[1751757540680,22.14547778,2521.7,2521.5,0.7734]
[1751757542484,24.75675297,2521.7,2521.5,0.001]
[1751757548195,16.78375297,2521.7,2521.5,0.001]
[1751757548362,22.14347778,2521.7,2521.5,0.001]
[1751757549365,22.14447778,2521.7,2521.5,0.001]
[1751757553201,14.17247778,2521.7,2521.5,0.001]
[1751757553380,22.14347778,2521.7,2521.5,0.001]
[1751757556569,22.14347778,2521.7,2521.5,0.7756]
[1751757560405,10.20689901,2521.7,2521.5,0.7756]
[1751757560702,18.17589901,2521.7,2521.5,0.7756]
[1751757561268,0.20689901,2521.7,2521.5,4.74149008]
[1751757561505,18.17689901,2521.7,2521.5,0.7756]
[1751757563477,23.96036768,2521.7,2521.5,0.7756]
[1751757564002,23.96336768,2521.7,2521.5,0.7756]
[1751757565416,19.99778891,2521.7,2521.5,0.7756]
[1751757567795,18.17989901,2521.7,2521.5,0.7756]
[1751757573486,8.17989901,2521.7,2521.5,0.7756]
[1751757574312,0.20689901,2521.7,2521.5,4.74148589]
[1751757574512,8.17689901,2521.7,2521.5,4.74148589]
[1751757575292,0.20689901,2521.7,2521.5,4.74148589]
[1751757575507,7.971,2521.7,2521.5,4.74140788]
[1751757577688,7.971,2521.7,2521.6,4.00917224]
[1751757578038,7.97,2521.7,2521.6,4.00917224]
[1751757578324,8.1676,2521.7,2521.6,4.00917224]
[1751757578629,0.1976,2521.7,2521.6,4.00917224]
[1751757582732,0.1976,2521.7,2521.6,4.82587224]
[1751757582921,7.969,2521.8,2521.7,3.96542414]
[1751757583144,8.1666,2521.8,2521.7,4.78212414]
[1751757584018,0.1976,2521.8,2521.7,4.78212414]
[1751757584224,0.002,2521.9,2521.8,3.96542152]
[1751757584406,0.002,2521.9,2521.8,4.80767573]
[1751757584732,0.002,2521.9,2521.8,5.79701682]
[1751757586131,0.002,2521.9,2521.8,5.75736261]
[1751757586535,0.002,2521.9,2521.8,5.79701682]
[1751757587438,0.002,2521.9,2521.8,5.75736261]
[1751757588133,0.002,2521.9,2521.8,5.79701682]
[1751757595844,0.002,2521.9,2521.8,5.99461682]
[1751757600956,0.002,2521.9,2521.8,5.95496261]
[1751757602656,0.002,2521.9,2521.8,13.92196261]
[1751757605062,0.002,2521.9,2521.8,13.92296261]
[1751757610469,0.002,2521.9,2521.8,23.92296261]
[1751757616474,1e-08,2521.9,2521.8,23.92296261]
[1751757618664,1e-08,2521.9,2521.8,24.47296261]
[1751757621141,1e-08,2521.9,2521.8,29.22296261]
[1751757621559,0.1976,2522.9,2522.8,3.96384969]
[1751757621869,0.1976,2522.9,2522.8,4.75663257]
[1751757622068,0.1976,2522.9,2522.8,3.96384969]
[1751757622438,0.1976,2522.9,2522.8,4.00348818]
[1751757622841,0.002,2523.0,2522.9,3.96369257]
[1751757629786,0.002,2523.0,2522.9,4.00332949]
[1751757630784,0.002,2523.0,2522.9,3.96369257]
[1751757634899,0.002,2523.0,2522.9,4.00332949]
[1751757636195,0.002,2523.0,2522.9,4.81980741]
[1751757638205,0.002,2523.0,2522.9,4.78017049]
[1751757648500,0.002,2523.0,2522.9,3.96369257]
[1751757669830,0.002,2523.0,2522.8,5.89176299]
[1751757670031,0.4885,2522.9,2522.8,5.89176299]
[1751757670331,0.6861,2522.9,2522.7,5.89193211]
[1751757671332,0.6861,2522.9,2522.8,3.96384969]
[1751757677920,0.1976,2522.9,2522.8,3.96384969]
[1751757681944,0.1976,2522.9,2522.7,1.928]
[1751757682120,0.1976,2522.9,2522.7,5.89199316]
[1751757682646,0.1976,2522.9,2522.8,3.96384969]
[1751757691173,0.1976,2522.9,2522.5,0.1976]
[1751757691355,5.49087061,2523.0,2522.6,5.89211699]
[1751757691666,0.6777,2522.8,2522.6,3.96411699]
[1751757694666,0.6777,2522.8,2522.6,4.00375862]
[1751757694881,0.1976,2522.8,2522.6,4.00375862]
[1751757695166,0.1976,2522.8,2522.7,3.96400681]
[1751757698570,0.1976,2522.8,2522.6,3.96408349]
[1751757699878,0.1976,2522.8,2522.5,5.89223514]
[1751757700577,0.1976,2522.8,2522.5,5.89226725]
[1751757701674,5.48887061,2522.6,2522.3,0.1976]
[1751757701968,0.1976,2522.4,2522.3,3.96463545]
[1751757710084,0.1976,2522.4,2522.2,5.89276501]
[1751757711882,0.1976,2522.4,2522.3,3.96463545]
[1751757714785,0.1996,2522.4,2522.3,3.96463545]
[1751757717061,0.1996,2522.4,2522.3,4.8353818]
[1751757720458,0.1996,2522.4,2522.3,4.0042818]
[1751757728164,0.1996,2522.4,2522.2,5.89270501]
[1751757728463,0.1996,2522.4,2522.2,3.96470501]
[1751757736884,0.1996,2522.4,2522.3,3.96463545]
[1751757740285,0.1996,2522.4,2522.3,4.0042818]
[1751757748715,0.1996,2522.4,2522.2,3.9647152]
[1751757749307,0.1996,2522.4,2522.3,3.96463545]
[1751757751786,0.1996,2522.4,2522.3,4.0042818]
[1751757758610,0.1996,2522.4,2522.1,4.16347262]
[1751757758827,0.1996,2522.4,2522.1,5.89387262]
[1751757759117,0.1996,2522.4,2522.3,0.001]
[1751757759317,0.81829706,2522.4,2522.3,0.001]
[1751757762340,0.1996,2522.4,2522.3,0.001]
[1751757764629,0.1996,2522.4,2522.3,3.96563545]
[1751757766920,0.002,2522.4,2522.3,4.8530818]
[1751757767119,0.002,2522.4,2522.3,5.0506818]
[1751757767335,0.002,2522.4,2522.3,7.49021358]
[1751757777054,0.002,2522.4,2522.3,7.45056723]
[1751757780454,0.002,2522.4,2522.3,6.60276723]
[1751757784362,0.002,2522.4,2522.3,8.53076723]
[1751757787138,0.002,2522.4,2522.3,9.31016723]
[1751757788137,0.002,2522.4,2522.3,14.83163545]
[1751757805479,0.002,2522.4,2522.3,14.05223545]
[1751757865440,0.002,2522.4,2522.3,14.84353545]
[1751757879544,0.002,2522.4,2522.3,14.05223545]
[1751757880750,5.98457061,2522.4,2522.3,0.001]
[1751757880941,6.58302767,2522.4,2522.3,0.001]
[1751757883722,6.58302767,2522.4,2522.3,3.96563545]
[1751757886633,6.58302767,2522.4,2522.3,0.001]
[1751757891857,0.002,2522.4,2522.3,3.96563545]
[1751757893232,0.002,2522.4,2522.3,4.0052818]
[1751757900264,0.002,2522.4,2522.3,3.96563545]
[1751757901628,0.002,2522.4,2522.3,5.89163545]
[1751757906167,0.002,2522.4,2522.3,5.9312818]
[1751757906355,0.002,2522.4,2522.3,5.89163545]
[1751757907764,0.002,2522.4,2522.3,3.96563545]
[1751757907967,0.002,2522.4,2522.3,5.89163545]
[1751757910365,0.002,2522.4,2522.3,3.96563545]
[1751757910537,0.60045706,2522.4,2522.3,3.96563545]
[1751757910745,0.1996,2522.4,2522.3,3.96563545]
[1751757919655,0.002,2522.4,2522.3,3.96563545]
[1751757933699,0.002,2522.4,2522.3,5.89063545]
[1751757938906,0.002,2522.4,2522.3,3.96563545]
[1751757939074,0.002,2522.4,2522.3,5.89063545]
[1751757953565,0.002,2522.4,2522.3,3.96563545]
[1751757965381,0.4957,2522.4,2522.3,0.001]
[1751757965536,0.4957,2522.4,2522.3,3.96563545]
[1751757965537,1.96147266,2522.4,2522.3,3.96563545]
[1751757965953,0.4957,2522.4,2522.3,3.96563545]
[1751757966127,0.002,2522.4,2522.3,3.96563545]
[1751757971365,0.002,2522.4,2522.3,0.001]
[1751757971963,0.002,2522.4,2522.3,3.96563545]
[1751757972164,0.002,2522.4,2522.3,0.001]
[1751757972459,1.39705706,2522.4,2522.3,0.001]
[1751757975456,1.59465706,2522.4,2522.3,0.001]
[1751757982862,7.08352767,2522.4,2522.3,0.001]
[1751757984337,11.04800594,2522.4,2522.3,0.001]
[1751757986182,19.01100594,2522.4,2522.3,0.001]
[1751757988189,15.04652767,2522.4,2522.3,0.001]
[1751758002590,7.08352767,2522.4,2522.3,0.001]
[1751758002791,13.64747061,2522.4,2522.3,0.001]
[1751758004890,5.68847061,2522.4,2522.3,0.001]
[1751758005098,13.64747061,2522.4,2522.3,0.001]
[1751758012924,13.64747061,2522.4,2522.3,3.96563545]
[1751758020530,5.68847061,2522.4,2522.3,3.96563545]
[1751758020712,13.64647061,2522.4,2522.3,3.96563545]
[1751758029119,13.64647061,2522.4,2522.3,0.001]
[1751758029742,15.01111767,2522.4,2522.3,0.001]
[1751758034750,15.01111767,2522.4,2522.3,3.96563545]
[1751758034959,13.64647061,2522.4,2522.3,3.96563545]
[1751758035755,13.64647061,2522.4,2522.3,0.001]
[1751758040661,13.64647061,2522.4,2522.3,3.96563545]
[1751758044251,13.64647061,2522.4,2522.3,0.001]
[1751758044453,5.68847061,2522.4,2522.3,0.001]
[1751758044783,13.64547061,2522.4,2522.3,0.001]
[1751758047403,0.1996,2522.4,2522.3,3.96563545]
[1751758047555,8.1566,2522.4,2522.3,3.96563545]
[1751758048897,8.1566,2522.4,2522.3,0.001]
[1751758049072,13.64547061,2522.4,2522.3,0.001]
[1751758067120,13.64547061,2522.4,2522.3,3.96563545]
[1751758069218,8.1566,2522.4,2522.3,3.96563545]
[1751758070620,8.1566,2522.4,2522.3,0.001]
[1751758075098,8.1566,2522.4,2522.3,3.96563545]
[1751758078942,8.1566,2522.4,2522.3,0.001]
[1751758080324,8.1566,2522.4,2522.3,3.96563545]
[1751758081443,8.1556,2522.4,2522.3,3.96563545]
[1751758089145,0.1996,2522.4,2522.3,3.96563545]
[1751758089456,7.958,2522.4,2522.3,3.96563545]
[1751758098275,0.002,2522.4,2522.3,3.96563545]
[1751758098458,0.002,2522.4,2522.3,4.86078782]
[1751758099574,0.002,2522.4,2522.3,3.96563545]
[1751758105180,5.49087061,2522.4,2522.3,0.001]
[1751758114493,0.002,2522.4,2522.3,3.96563545]
[1751758115379,0.002,2522.4,2522.3,0.001]
[1751758122908,0.002,2522.4,2522.3,3.96563545]
[1751758123209,0.002,2522.4,2522.3,0.001]
[1751758126005,0.002,2522.4,2522.3,3.96563545]
[1751758129015,0.002,2522.4,2522.3,0.001]
[1751758131316,0.002,2522.4,2522.3,3.96563545]
[1751758135194,0.002,2522.4,2522.3,4.44678209]
[1751758135393,0.002,2522.4,2522.3,5.53982844]
[1751758140699,0.002,2522.4,2522.3,13.49382844]
[1751758140906,0.002,2522.4,2522.3,13.45418209]
[1751758149946,0.002,2522.9,2522.8,3.96384969]
[1751758150238,0.002,2522.9,2522.8,4.80904969]
[1751758150441,0.002,2522.9,2522.8,6.11995523]
[1751758154649,0.002,2522.9,2522.8,6.08031674]
[1751758154824,0.002,2522.9,2522.8,5.23511674]
[1751758155325,0.002,2522.9,2522.8,5.27475523]
[1751758155524,0.002,2522.9,2522.8,4.20108818]
[1751758156052,0.002,2522.9,2522.8,4.16144969]
[1751758157539,0.002,2522.9,2522.8,4.20108818]
[1751758157730,0.002,2522.9,2522.8,4.16144969]
[1751758160965,0.002,2522.9,2522.8,0.1976]
[1751758161268,6.08942767,2522.9,2522.5,0.1976]
[1751758161434,6.08942767,2522.9,2522.6,3.96406616]
[1751758161435,5.48887061,2522.7,2522.6,3.96406616]
[1751758161632,0.4927,2522.6,2522.3,3.96552785]
[1751758161930,0.4927,2522.6,2522.3,0.1986]
[1751758161931,5.48887061,2522.4,2522.3,0.1986]
[1751758162362,5.48887061,2522.4,2522.3,0.001]
[1751758162551,5.68647061,2522.4,2522.3,0.001]
[1751758162752,6.70080453,2522.4,2522.3,0.001]
[1751758162951,7.19350453,2522.4,2522.3,0.001]
[1751758163763,1.70463392,2522.4,2522.3,0.001]
[1751758163963,0.6903,2522.4,2522.3,0.001]
[1751758168871,8.6433,2522.4,2522.3,0.001]
[1751758174442,12.60777827,2522.4,2522.3,0.001]
[1751758175974,8.6433,2522.4,2522.3,0.001]
[1751758176470,12.81456998,2522.4,2522.3,0.001]
[1751758176776,15.24785781,2522.4,2522.3,0.001]
[1751758188200,25.24785781,2522.4,2522.3,0.001]
[1751758191907,17.29485781,2522.4,2522.3,0.001]
[1751758192117,25.25185781,2522.4,2522.3,0.001]
[1751758200424,12.01139603,2522.2,2522.1,0.001]
[1751758200585,19.96639603,2522.2,2522.1,0.001]
[1751758206614,15.50890339,2522.2,2522.1,0.001]
[1751758207089,7.55390339,2522.2,2522.1,0.001]
[1751758207289,15.50890339,2522.2,2522.1,0.001]
[1751758207488,20.07225309,2522.2,2522.1,0.001]
[1751758211393,16.10746045,2522.2,2522.1,0.001]
[1751758211621,15.50890339,2522.2,2522.1,0.001]
[1751758212326,19.47369603,2522.2,2522.1,0.001]
[1751758212716,15.50890339,2522.2,2522.1,0.001]
[1751758216633,17.7626951,2522.4,2522.1,0.001]
[1751758216932,0.1976,2522.2,2522.1,0.001]
[1751758225141,8.1546,2522.2,2522.1,0.001]
[1751758234960,0.1976,2522.2,2522.1,3.96594984]
[1751758235140,8.1526,2522.2,2522.1,4.81794984]
[1751758235828,8.1526,2522.2,2522.1,0.853]
[1751758236345,8.1526,2522.2,2522.1,0.001]
[1751758241566,0.1976,2522.2,2522.1,0.001]
[1751758241762,8.1526,2522.2,2522.1,0.001]
[1751758246593,8.1526,2522.2,2522.1,3.96594984]
[1751758246767,8.1526,2522.2,2522.1,4.78564984]
[1751758247689,8.1526,2522.2,2522.1,0.8207]
[1751758251303,8.1526,2522.2,2522.1,4.78564984]
[1751758254274,8.1516,2522.2,2522.1,4.78564984]
[1751758255805,13.64589054,2522.2,2522.1,4.78564984]
[1751758256104,13.64589054,2522.2,2522.1,0.8207]
[1751758256391,13.64589054,2522.2,2522.1,4.78564984]
[1751758262302,5.69189054,2522.2,2522.1,4.78564984]
[1751758262510,13.64589054,2522.2,2522.1,4.78564984]
[1751758264620,5.69189054,2522.2,2522.1,4.78564984]
[1751758264903,0.002,2522.3,2522.2,4.80089264]
[1751758277921,0.002,2522.3,2522.2,3.96479264]
[1751758286345,0.002,2522.3,2522.2,4.74519264]
[1751758301962,0.002,2522.3,2522.2,4.78484056]
[1751758302163,0.002,2522.3,2522.2,5.8721796]
[1751758302932,0.002,2522.3,2522.2,14.0237796]
[1751758303156,0.002,2522.3,2522.2,13.98413168]
[1751758304242,1e-08,2522.3,2522.2,14.53413168]
[1751758304446,1e-08,2522.3,2522.2,24.53413168]
[1751758319294,5.49468359,2522.9,2522.8,3.96384969]
[1751758319686,5.49468359,2522.9,2522.8,4.16144969]
[1751758327880,5.49468359,2522.9,2522.8,3.96384969]
[1751758332312,0.002,2522.9,2522.8,3.96384969]
[1751758333405,0.002,2522.9,2522.8,4.81603083]
[1751758333616,0.002,2522.9,2522.8,5.01363083]
[1751758338037,0.002,2522.9,2522.8,4.16144969]
[1751758338208,0.002,2522.9,2522.8,3.96384969]
[1751758338526,8.04158107,2522.9,2522.7,3.96393699]
[1751758339928,8.04158107,2522.9,2522.8,3.96384969]
[1751758349938,7.54968107,2522.9,2522.8,3.96384969]
[1751758355935,0.002,2522.9,2522.8,3.96384969]
[1751758356248,0.002,2522.9,2522.8,5.04718836]
[1751758357950,0.002,2522.9,2522.8,3.96384969]
[1751758357951,5.4925339,2522.9,2522.8,3.96384969]
[1751758387387,0.002,2522.9,2522.8,3.96384969]
[1751758393425,5.4925339,2522.9,2522.8,3.96384969]
[1751758414107,0.6893,2522.8,2522.4,3.96535965]
[1751758414313,10.05141831,2522.8,2522.5,3.96424406]
[1751758414507,5.4905339,2522.6,2522.5,3.96424406]
[1751758416735,5.4905339,2522.6,2522.4,0.001]
[1751758417130,5.4905339,2522.6,2522.4,3.9654025]
[1751758417328,5.4905339,2522.6,2522.4,0.001]
[1751758417746,5.4905339,2522.6,2522.4,3.96539562]
[1751758419632,5.4905339,2522.6,2522.4,0.001]
[1751758419830,0.4917,2522.5,2522.4,0.001]
[1751758420139,0.6893,2522.5,2522.4,0.001]
[1751758421752,8.6413,2522.5,2522.4,0.001]